bitfinex/quotes_ETHUSD_20240717
["timestamp","ask_amount","ask_price","bid_price","bid_amount"]
[1721256659507,0.60999793,3400.4,3400.0,2.3897]
[1721256659823,0.60999793,3400.5,3400.0,1.3297]
[1721256660028,0.60999793,3400.5,3400.2,3.3197]
[1721256667552,0.60999793,3400.5,3400.0,4.27085]
[1721256667553,2.94108,3400.1,3400.0,1.0]
[1721256667850,6.79714655,3400.1,3400.0,1.0]
[1721256668049,7.28084415,3400.1,3400.0,1.0]
[1721256668645,6.06082321,3400.1,3400.0,1.0]
[1721256669262,7.28084415,3400.1,3400.0,1.0]
[1721256670239,6.06082321,3400.1,3400.0,1.0]
[1721256670439,7.28084415,3400.1,3400.0,1.0]
[1721256671156,8.44902978,3400.1,3400.0,1.0]
[1721256671440,7.22897851,3400.1,3400.0,1.0]
[1721256672353,8.75389502,3400.1,3400.0,1.0]
[1721256672535,8.44917827,3400.1,3400.0,1.0]
[1721256672865,9.00190321,3400.1,3400.0,1.0]
[1721256673061,18.97411781,3400.1,3400.0,1.0]
[1721256673210,20.81049763,3400.1,3400.0,1.0]
[1721256673617,2.94195,3399.1,3399.0,7.39]
[1721256673834,3.55184532,3399.1,3398.7,2.435]
[1721256674027,3.55184532,3399.1,3398.8,0.2435]
[1721256674748,3.55184532,3399.1,3398.3,2.2564]
[1721256674749,2.94212,3398.9,3398.3,2.2564]
[1721256676347,2.9423,3398.7,3398.3,2.2564]
[1721256676549,3.55219532,3398.7,3398.3,2.2564]
[1721256677046,3.55219532,3398.7,3397.9,2.2667]
[1721256677047,2.44782519,3398.6,3397.9,2.2667]
[1721256677249,3.05772051,3398.6,3397.9,2.2667]
[1721256677441,3.05772051,3398.6,3397.9,2.787694]
[1721256677635,0.00717086,3398.5,3397.9,2.787694]
[1721256677947,3.05228532,3398.6,3397.9,2.787694]
[1721256677948,0.0058658,3398.4,3397.9,2.787694]
[1721256678331,2.94244,3398.6,3397.9,2.787694]
[1721256678533,2.95032179,3398.3,3397.9,2.2667]
[1721256678753,2.94272,3398.3,3397.9,2.2667]
[1721256678955,0.00933789,3398.2,3397.9,2.2667]
[1721256679468,5.29337,3398.4,3397.4,2.9434]
[1721256679621,0.91484298,3398.8,3397.4,1.07564838]
[1721256679622,2.94301,3397.9,3397.4,1.07564838]
[1721256679824,2.44296,3398.0,3397.3,2.9435]
[1721256680040,0.01454679,3397.9,3397.3,2.9435]
[1721256680841,0.01454679,3397.9,3397.4,3.0]
[1721256681353,2.95754679,3397.9,3397.4,3.0]
[1721256681552,2.95754679,3397.9,3397.4,0.82681438]
[1721256683543,2.95753679,3397.9,3397.4,0.82681438]
[1721256685676,0.01454679,3397.9,3397.4,0.82681438]
[1721256686170,2.94274,3398.2,3397.5,2.4854]
[1721256686392,0.01628329,3397.8,3397.5,2.4854]
[1721256686562,2.94274,3398.2,3397.6,0.91991144]
[1721256686769,0.0180199,3397.7,3397.6,0.91991144]
[1721256686976,2.94274,3398.2,3397.6,0.91991144]
[1721256687265,0.01107409,3398.1,3397.6,0.91991144]
[1721256687639,0.01107409,3398.1,3397.6,0.97877044]
[1721256687864,0.01107409,3398.1,3397.7,0.72343148]
[1721256688073,2.94274,3398.2,3397.7,0.72343148]
[1721256688247,2.94261,3398.4,3397.7,0.72343148]
[1721256688449,0.00760179,3398.3,3397.7,0.72343148]
[1721256688674,2.94279,3398.2,3397.7,0.72343148]
[1721256688970,2.95390409,3398.1,3397.5,2.4854]
[1721256690671,2.94306,3397.9,3397.4,0.82681438]
[1721256690874,2.94306,3397.9,3397.2,2.3095138]
[1721256690875,0.01628329,3397.8,3397.2,2.3095138]
[1721256691695,2.95936329,3397.8,3397.2,2.3095138]
[1721256693801,2.95936329,3397.8,3397.2,0.0578138]
[1721256694100,2.94318,3397.7,3397.2,0.0578138]
[1721256694340,2.94318,3397.7,3397.2,1.18324518]
[1721256694605,0.01792286,3397.6,3397.2,1.18324518]
[1721256694782,2.94351,3397.3,3397.2,0.0578138]
[1721256695107,2.96664344,3397.3,3397.2,0.0578138]
[1721256695461,2.95839085,3397.3,3397.2,0.0578138]
[1721256698274,5.90190085,3397.3,3397.2,0.0578138]
[1721256700833,8.36229115,3397.3,3397.2,0.0578138]
[1721256702646,8.37055549,3397.3,3397.2,0.0578138]
[1721256703928,5.91475549,3397.3,3397.2,0.0578138]
[1721256707020,0.02773549,3397.3,3397.2,0.0578138]
[1721256707330,2.94327,3397.6,3397.2,0.30222518]
[1721256707564,0.02498403,3397.3,3397.2,0.0578138]
[1721256707692,2.94289,3398.1,3397.3,2.94349]
[1721256708036,2.94282,3398.1,3397.4,2.94341]
[1721256709203,2.94291,3398.0,3397.5,0.84237338]
[1721256709454,0.00262949,3397.9,3397.3,2.479]
[1721256709765,0.00436564,3397.9,3397.3,2.479]
[1721256709977,0.00436564,3397.9,3397.3,5.4225]
[1721256710367,0.00436564,3397.9,3397.3,2.479]
[1721256710688,2.94740564,3397.9,3397.3,2.479]
[1721256710983,2.94740564,3397.9,3397.4,0.54804938]
[1721256711133,2.94308,3397.8,3397.4,0.54804938]
[1721256711421,0.0061019,3397.7,3397.3,2.479]
[1721256711626,2.94291,3398.0,3397.3,2.479]
[1721256711846,2.94275,3398.2,3397.3,2.479]
[1721256711847,2.94561949,3397.9,3397.3,2.479]
[1721256712152,2.94735564,3397.9,3397.3,2.479]
[1721256713698,2.94735564,3397.9,3397.3,5.42243]
[1721256713699,0.00436564,3397.9,3397.3,5.42243]
[1721256713906,3.54966214,3398.6,3397.4,0.84239238]
[1721256714183,3.54966214,3398.6,3397.3,2.479]
[1721256714184,2.94317,3397.7,3397.3,2.479]
[1721256714543,2.95116826,3397.6,3397.2,0.0578138]
[1721256716282,2.94334,3397.5,3397.2,0.0578138]
[1721256716483,0.01131128,3397.4,3397.2,0.0578138]
[1721256716644,2.94321,3397.7,3397.2,0.0578138]
[1721256716839,0.00783826,3397.6,3397.2,0.0578138]
[1721256717160,0.00783826,3397.6,3397.2,1.18461518]
[1721256717346,0.00783826,3397.6,3397.2,0.0578138]
[1721256719543,2.94317,3397.7,3397.2,0.0578138]
[1721256719756,0.00957472,3397.5,3397.2,0.0578138]
[1721256720102,2.94317,3397.7,3397.2,0.0578138]
[1721256720103,0.01131128,3397.4,3397.2,0.0578138]
[1721256720397,0.01131128,3397.4,3397.2,0.89024118]
[1721256720601,0.60720214,3397.8,3397.2,0.89024118]
[1721256720757,0.01304795,3397.3,3397.2,0.0578138]
[1721256720952,2.94329,3397.6,3397.2,0.0578138]
[1721256721189,0.01304795,3397.3,3397.2,0.0578138]
[1721256721359,5.88702,3397.3,3397.2,0.0578138]
[1721256721570,6.82638784,3397.3,3397.2,0.0578138]
[1721256722159,6.82472251,3397.3,3397.2,0.0578138]
[1721256722357,6.10203167,3397.3,3397.2,0.0578138]
[1721256722955,8.48804468,3397.3,3397.2,0.0578138]
[1721256723287,7.32182232,3397.3,3397.2,0.0578138]
[1721256723459,7.26821441,3397.3,3397.2,0.0578138]
[1721256724060,8.48604772,3397.3,3397.2,0.0578138]
[1721256724503,8.48605504,3397.3,3397.2,0.0578138]
[1721256724783,8.486075,3397.3,3397.2,0.0578138]
[1721256725383,4.37635498,3397.3,3397.2,0.0578138]
[1721256725685,6.82499081,3397.3,3397.2,0.0578138]
[1721256726252,7.32534028,3397.3,3397.2,0.0578138]
[1721256726513,8.49148515,3397.3,3397.2,0.0578138]
[1721256726863,9.71765184,3397.3,3397.2,0.0578138]
[1721256727059,9.70894576,3397.3,3397.2,0.0578138]
[1721256727267,11.23135568,3397.3,3397.2,0.0578138]
[1721256728367,14.17486568,3397.3,3397.2,0.0578138]
[1721256728709,14.1737992,3397.3,3397.2,0.0578138]
[1721256728863,11.2302892,3397.3,3397.2,0.0578138]
[1721256729411,7.26461506,3397.3,3397.2,0.0578138]
[1721256729608,8.7862892,3397.3,3397.2,0.0578138]
[1721256730188,7.26461506,3397.3,3397.2,0.0578138]
[1721256730386,8.7862892,3397.3,3397.2,0.2578138]
[1721256730569,7.26461506,3397.3,3397.2,0.2578138]
[1721256730764,8.7862892,3397.3,3397.2,0.2578138]
[1721256731617,7.26461506,3397.3,3397.2,0.2578138]
[1721256731899,7.2646588,3397.3,3397.2,0.2578138]
[1721256732066,7.6203237,3397.3,3397.2,0.2578138]
[1721256732262,7.26465036,3397.3,3397.2,0.2578138]
[1721256732504,10.20816036,3397.3,3397.2,0.2578138]
[1721256732707,11.72968317,3397.3,3397.2,0.2578138]
[1721256733287,10.20816036,3397.3,3397.2,0.2578138]
[1721256734526,13.20816036,3397.3,3397.2,0.2578138]
[1721256734803,13.20816036,3397.3,3397.2,0.4578138]
[1721256735101,13.70992462,3397.3,3397.2,0.4578138]
[1721256736713,15.53572247,3397.3,3397.2,0.4578138]
[1721256736878,13.70992462,3397.3,3397.2,0.4578138]
[1721256737274,13.2078742,3397.3,3397.2,0.4578138]
[1721256737905,13.70995673,3397.3,3397.2,0.4578138]
[1721256738084,13.70982004,3397.3,3397.2,0.4578138]
[1721256738981,13.20773751,3397.3,3397.2,0.4578138]
[1721256739183,13.7097984,3397.3,3397.2,0.4578138]
[1721256739374,15.53534291,3397.3,3397.2,0.4578138]
[1721256739575,13.20773751,3397.3,3397.2,0.4578138]
[1721256739775,15.53534194,3397.3,3397.2,0.4578138]
[1721256739995,13.70979743,3397.3,3397.2,0.4578138]
[1721256740205,13.70979743,3397.3,3397.2,0.6578138]
[1721256740819,12.54437081,3397.3,3397.2,0.6578138]
[1721256741024,13.70969501,3397.3,3397.2,0.6578138]
[1721256741325,15.53508035,3397.3,3397.2,0.6578138]
[1721256741819,15.53496768,3397.3,3397.2,0.6578138]
[1721256742325,13.70969208,3397.3,3397.2,0.6578138]
[1721256742935,15.53497256,3397.3,3397.2,0.6578138]
[1721256743442,13.70969208,3397.3,3397.2,0.6578138]
[1721256743594,13.70949421,3397.3,3397.2,0.6578138]
[1721256743998,15.53477469,3397.3,3397.2,0.6578138]
[1721256744501,15.53412853,3397.3,3397.2,0.6578138]
[1721256745008,15.53412853,3397.3,3397.2,0.8578138]
[1721256745434,18.47763853,3397.3,3397.2,0.8578138]
[1721256746936,16.65293379,3397.3,3397.2,0.68722144]
[1721256747530,15.48768294,3397.3,3397.2,0.68722144]
[1721256747688,16.6527789,3397.3,3397.2,0.68722144]
[1721256747896,15.53322326,3397.3,3397.2,0.68722144]
[1721256748323,18.47655162,3397.3,3397.2,0.68722144]
[1721256748845,15.53304162,3397.3,3397.2,0.68722144]
[1721256749416,13.7092689,3397.3,3397.2,0.68722144]
[1721256749615,15.53304162,3397.3,3397.2,0.68722144]
[1721256749995,15.53304162,3397.3,3397.2,0.88722144]
[1721256750195,13.70929462,3397.3,3397.2,0.88722144]
[1721256750838,15.53282812,3397.3,3397.2,0.88722144]
[1721256751098,7.26392202,3397.3,3397.2,3.20562144]
[1721256751208,6.09880089,3397.3,3397.2,3.20562144]
[1721256751859,7.26401648,3397.3,3397.2,0.88722144]
[1721256751997,8.78376446,3397.3,3397.2,0.88722144]
[1721256752344,9.84576446,3397.3,3397.2,0.88722144]
[1721256752710,9.54185973,3397.3,3397.2,0.88722144]
[1721256753031,8.32605478,3397.3,3397.2,0.88722144]
[1721256753589,9.84580276,3397.3,3397.2,0.88722144]
[1721256753942,9.84568813,3397.3,3397.2,0.88722144]
[1721256754242,8.37619862,3397.3,3397.2,0.88722144]
[1721256754939,7.31419862,3397.3,3397.2,0.88722144]
[1721256755150,0.92748431,3397.3,3397.2,3.19332144]
[1721256755361,0.62373226,3397.3,3397.2,3.51265358]
[1721256755496,0.01581878,3397.3,3397.2,3.51265358]
[1721256756007,3.55134348,3397.4,3397.2,3.51265358]
[1721256756211,0.01581878,3397.3,3397.2,3.19332144]
[1721256756419,2.95932878,3397.3,3397.2,3.19332144]
[1721256756635,7.87650431,3397.3,3397.2,0.88722144]
[1721256757011,7.15815938,3397.3,3397.2,0.88722144]
[1721256757219,7.1581968,3397.3,3397.2,0.88722144]
[1721256757637,7.16291765,3397.3,3397.2,0.88722144]
[1721256758015,6.10091765,3397.3,3397.2,0.88722144]
[1721256758539,7.31631538,3397.3,3397.2,0.88722144]
[1721256758717,3.87674958,3397.3,3397.2,0.88722144]
[1721256758920,3.1574876,3397.3,3397.2,0.88722144]
[1721256759430,4.37288533,3397.3,3397.2,0.88722144]
[1721256760219,5.43488533,3397.3,3397.2,0.88722144]
[1721256761146,9.84999091,3397.3,3397.2,0.88722144]
[1721256761351,8.32820458,3397.3,3397.2,0.88722144]
[1721256761645,5.54028091,3397.3,3397.2,3.26142144]
[1721256763148,5.54025263,3397.3,3397.2,3.26142144]
[1721256763330,4.3226663,3397.3,3397.2,3.26142144]
[1721256764055,1.3791563,3397.3,3397.2,3.26142144]
[1721256764337,0.21409389,3397.3,3397.2,3.26142144]
[1721256764576,0.93407502,3397.3,3397.2,3.26142144]
[1721256764756,3.15762968,3397.3,3397.2,3.26142144]
[1721256765052,8.32827136,3397.3,3397.2,0.88722144]
[1721256766124,7.16313968,3397.3,3397.2,0.88722144]
[1721256766445,10.70617846,3397.3,3397.2,0.88722144]
[1721256766656,12.53371476,3397.3,3397.2,0.88722144]
[1721256766808,13.87166252,3397.3,3397.2,0.88722144]
[1721256767005,12.04412622,3397.3,3397.2,0.88722144]
[1721256768848,21.9779619,3397.3,3397.2,0.88722144]
[1721256769032,23.39583622,3397.3,3397.2,0.88722144]
[1721256769240,24.00906513,3397.3,3397.2,0.88722144]
[1721256769441,26.51232239,3397.3,3397.2,0.71404002]
[1721256769950,26.51224105,3397.3,3397.2,0.71404002]
[1721256770359,26.5122202,3397.3,3397.2,0.71404002]
[1721256770720,27.41046007,3397.3,3397.2,0.71404002]
[1721256771028,26.81943862,3397.3,3397.2,0.71404002]
[1721256772050,26.31360642,3397.3,3397.2,0.71404002]
[1721256772453,26.31356815,3397.3,3397.2,0.71404002]
[1721256772617,27.21171204,3397.3,3397.2,0.71404002]
[1721256772822,26.31356815,3397.3,3397.2,0.71404002]
[1721256773465,26.31829015,3397.3,3397.2,0.71404002]
[1721256774520,17.96458015,3397.3,3397.2,0.71404002]
[1721256774834,17.65736173,3397.3,3397.2,0.71404002]
[1721256775433,19.78899782,3397.3,3397.2,0.71404002]
[1721256775640,17.65716649,3397.3,3397.2,0.71404002]
[1721256776439,17.65362491,3397.3,3397.2,0.71404002]
[1721256777040,19.78517525,3397.3,3397.2,0.71404002]
[1721256778374,19.78493235,3397.3,3397.2,0.71404002]
[1721256778728,15.15070335,3397.3,3397.2,0.71404002]
[1721256778939,19.78478368,3397.3,3397.2,0.71404002]
[1721256779233,17.28196144,3397.3,3397.2,0.71404002]
[1721256779434,19.78475866,3397.3,3397.2,0.57934207]
[1721256780663,15.10350057,3397.3,3397.2,0.57934207]
[1721256780975,11.60999057,3397.3,3397.2,0.57934207]
[1721256781182,9.10719335,3397.3,3397.2,0.57934207]
[1721256781349,11.61009249,3397.3,3397.2,0.57934207]
[1721256784177,9.10719335,3397.3,3397.2,0.57934207]
[1721256784472,12.95149388,3397.3,3397.2,0.57934207]
[1721256786609,12.95149388,3397.3,3396.8,2.3895]
[1721256786610,2.94386,3396.9,3396.8,2.3895]
[1721256786809,4.30256631,3396.9,3396.8,2.3895]
[1721256787126,4.31910355,3396.9,3396.8,2.3895]
[1721256787423,4.31911262,3396.9,3396.8,2.3895]
[1721256787612,7.26297262,3396.9,3396.8,2.3895]
[1721256787971,7.26299068,3396.9,3396.8,2.3895]
[1721256788370,8.32598522,3396.9,3396.8,2.3895]
[1721256790714,7.16083729,3396.9,3396.8,2.3895]
[1721256790934,8.32589145,3396.9,3396.8,2.3895]
[1721256791441,7.26289145,3396.9,3396.8,2.3895]
[1721256791847,8.32589145,3396.9,3396.8,2.3895]
[1721256793839,7.16083729,3396.9,3396.8,2.3895]
[1721256794047,8.32588889,3396.9,3396.8,2.3895]
[1721256794196,9.84834977,3396.9,3396.8,2.3895]
[1721256794395,8.32588889,3396.9,3396.8,2.3895]
[1721256794938,9.84838876,3396.9,3396.8,2.3895]
[1721256797030,9.84829488,3396.9,3396.8,2.3895]
[1721256797552,9.84829417,3396.9,3396.8,2.3895]
[1721256798439,8.78529417,3396.9,3396.8,2.3895]
[1721256798622,9.84829417,3396.9,3396.8,2.3895]
[1721256799964,8.32582007,3396.9,3396.8,2.3895]
[1721256800374,8.32620594,3396.9,3396.8,2.3895]
[1721256803557,8.32623156,3396.9,3396.8,2.3895]
[1721256806689,0.02634157,3396.2,3396.1,2.989377]
[1721256807401,0.60944894,3396.3,3396.1,2.989377]
[1721256807594,0.60944894,3396.3,3396.2,0.6997047]
[1721256807794,0.60944894,3396.3,3396.2,3.1073047]
[1721256808359,1.21889789,3396.6,3396.3,5.33918]
[1721256808360,0.60944894,3396.5,3396.3,5.33918]
[1721256808703,0.60944894,3396.6,3396.5,5.339]
[1721256808857,0.60944894,3396.8,3396.6,2.3948]
[1721256809212,0.60944894,3396.8,3396.7,3.4578]
[1721256810279,0.91417342,3396.9,3396.7,1.063]
[1721256810597,0.91417342,3396.9,3396.8,2.473]
[1721256810970,1.11148495,3396.9,3396.8,2.473]
[1721256811171,2.38395449,3396.9,3396.8,2.473]
[1721256811518,2.94405,3396.7,3396.4,2.473]
[1721256811685,0.91439817,3396.5,3396.4,2.473]
[1721256812072,2.5815103,3396.5,3396.4,2.473]
[1721256812518,2.5814662,3396.5,3396.4,2.473]
[1721256812879,5.5256662,3396.5,3396.4,2.473]
[1721256813105,2.94432,3396.4,3395.8,2.3379]
[1721256813301,2.94432,3396.4,3395.9,0.634576]
[1721256813302,0.6095607,3396.1,3395.9,0.634576]
[1721256814790,0.6095607,3396.2,3396.0,3.4009]
[1721256814990,0.6095607,3396.2,3396.1,3.4009]
[1721256816211,0.6095607,3396.2,3396.1,6.34545]
[1721256816372,0.6095607,3396.2,3396.1,7.3379306]
[1721256818328,0.6095607,3396.3,3396.2,2.94446]
[1721256818612,0.6095607,3396.4,3396.3,2.4125]
[1721256818823,0.6095607,3396.4,3396.3,4.21674406]
[1721256819320,0.91434106,3396.5,3396.3,4.21674406]
[1721256819519,0.60974748,3396.4,3396.3,4.21674406]
[1721256820604,0.91434106,3396.5,3396.4,2.2688]
[1721256821115,0.60976817,3396.5,3396.4,2.2688]
[1721256821426,0.60976817,3396.5,3396.4,3.36424447]
[1721256821913,0.60976817,3396.5,3396.4,6.30853447]
[1721256823532,0.60976817,3396.5,3396.4,3.36424447]
[1721256823813,0.60976817,3396.5,3396.4,2.2688]
[1721256825174,0.60976817,3396.5,3396.4,5.21309]
[1721256827336,0.91434106,3396.7,3396.3,1.063]
[1721256827337,0.60976817,3396.6,3396.5,8.2725]
[1721256827493,0.60976817,3396.7,3396.6,2.94412]
[1721256827691,0.91434106,3396.8,3396.7,2.94403]
[1721256828295,0.91434106,3396.9,3396.8,2.94394]
[1721256828694,0.91434106,3396.9,3396.8,3.14394]
[1721256832338,0.2028199,3397.0,3396.8,3.14394]
[1721256832339,0.91434106,3397.0,3396.8,3.14394]
[1721256832543,0.91434106,3397.0,3396.9,3.4921]
[1721256832709,0.91434106,3397.0,3396.9,4.5434692]
[1721256833846,0.91919762,3397.0,3396.9,4.5434692]
[1721256833994,0.91919762,3397.0,3396.9,7.4873292]
[1721256834199,0.00485656,3397.0,3396.9,10.4311892]
[1721256834438,0.00092124,3397.0,3396.9,13.4311892]
[1721256834643,0.60961297,3397.7,3397.3,2.94344]
[1721256834800,0.60961297,3397.6,3397.5,2.4291]
[1721256835001,0.60961297,3397.7,3397.6,1.063]
[1721256835234,0.60961297,3397.7,3397.6,4.00625]
[1721256835537,0.60961297,3397.9,3397.6,4.00625]
[1721256835748,0.60961297,3397.8,3397.6,5.0029818]
[1721256836347,0.60961297,3397.9,3397.6,3.9399818]
[1721256837322,7.91961297,3398.0,3397.6,3.9399818]
[1721256838237,7.91961297,3398.0,3397.6,0.9967318]
[1721256838238,0.60961297,3397.9,3397.6,0.9967318]
[1721256838539,0.60961297,3397.9,3397.5,5.37237]
[1721256838749,0.60961297,3397.8,3397.3,2.94348]
[1721256840316,0.60961297,3397.9,3397.3,2.94348]
[1721256840519,3.55261297,3397.9,3397.3,3.758855]
[1721256840822,0.60961297,3397.8,3397.3,2.94348]
[1721256841704,3.55261297,3397.9,3397.3,2.94348]
[1721256841911,0.60961297,3397.9,3397.3,2.94348]
[1721256842137,0.60961297,3397.9,3397.7,2.4296]
[1721256842347,0.60961297,3398.0,3397.7,2.4296]
[1721256842511,0.60961297,3398.1,3397.7,2.4296]
[1721256842730,0.60961297,3398.0,3397.7,2.4296]
[1721256843448,0.60961297,3398.1,3397.7,2.4296]
[1721256847122,0.60961297,3398.2,3397.7,5.37276]
[1721256847306,0.60961297,3398.2,3397.7,6.204359]
[1721256848917,0.60961297,3398.3,3397.7,6.204359]
[1721256849444,0.60961297,3398.2,3397.7,6.404359]
[1721256849616,0.60961297,3398.3,3397.7,6.404359]
[1721256851757,0.60961297,3398.3,3397.7,5.57276]
[1721256853345,0.60961297,3398.3,3397.8,2.94306]
[1721256853968,0.60961297,3398.3,3397.7,2.6296]
[1721256854285,0.60961297,3398.3,3397.7,0.2]
[1721256854286,2.94308,3397.8,3397.7,0.2]
[1721256854426,6.80050106,3397.8,3397.7,0.2]
[1721256854633,6.09273384,3397.8,3397.7,0.2]
[1721256854922,7.31022575,3397.8,3397.7,0.2]
[1721256855738,6.09273384,3397.8,3397.7,0.2]
[1721256856083,7.31022928,3397.8,3397.7,0.2]
[1721256856657,6.09273384,3397.8,3397.7,0.2]
[1721256857968,7.31047994,3397.8,3397.7,0.2]
[1721256858175,6.09273384,3397.8,3397.7,0.2]
[1721256858965,7.2605765,3397.8,3397.7,0.2]
[1721256859289,6.09273384,3397.8,3397.7,0.2]
[1721256859460,7.26059992,3397.8,3397.7,0.2]
[1721256860140,8.78300731,3397.8,3397.7,0.2]
[1721256862371,6.09273384,3397.8,3397.7,0.2]
[1721256862548,8.78475232,3397.8,3397.7,0.2]
[1721256862868,8.78473471,3397.8,3397.7,0.2]
[1721256863373,8.78489144,3397.8,3397.7,0.2]
[1721256864359,7.26098153,3397.8,3397.7,0.2]
[1721256865690,7.2610203,3397.8,3397.7,0.2]
[1721256866105,16.69955219,3397.8,3397.7,0.2]
[1721256866405,19.10309854,3397.8,3397.7,0.15838646]
[1721256867462,17.76155219,3397.8,3397.7,0.15838646]
[1721256867852,19.10309365,3397.8,3397.7,0.15838646]
[1721256868297,18.04109365,3397.8,3397.7,0.15838646]
[1721256868704,18.04098011,3397.8,3397.7,0.15838646]
[1721256868862,20.98406011,3397.8,3397.7,0.15838646]
[1721256869603,23.11815419,3397.8,3397.7,0.15838646]
[1721256869769,26.22015419,3397.8,3397.7,0.15838646]
[1721256869969,26.22015419,3397.8,3397.7,6.46e-06]
[1721256870588,21.57634573,3397.8,3397.7,6.46e-06]
[1721256870771,26.21956752,3397.8,3397.7,6.46e-06]
[1721256870974,26.21990534,3397.8,3397.7,6.46e-06]
[1721256871581,26.21996615,3397.8,3397.7,6.46e-06]
[1721256871968,26.21989248,3397.8,3397.7,6.46e-06]
[1721256872185,23.11789248,3397.8,3397.7,6.46e-06]
[1721256872386,18.47434573,3397.8,3397.7,6.46e-06]
[1721256872614,24.08633277,3397.8,3397.7,6.46e-06]
[1721256872910,21.57634573,3397.8,3397.7,6.46e-06]
[1721256873217,26.2200005,3397.8,3397.7,6.46e-06]
[1721256873567,24.08625652,3397.8,3397.7,6.46e-06]
[1721256875197,21.57634573,3397.8,3397.7,6.46e-06]
[1721256875373,24.08741253,3397.8,3397.7,6.46e-06]
[1721256876487,5.88772,3396.9,3396.4,0.6]
[1721256876686,6.80303481,3396.9,3396.4,0.6]
[1721256876972,6.81661786,3396.9,3396.4,0.6]
[1721256877394,5.90130305,3396.9,3396.4,0.6]
[1721256877780,5.90130305,3396.9,3396.8,2.5737]
[1721256877982,0.01358305,3396.9,3396.8,2.83107]
[1721256878570,10.86375042,3397.3,3396.8,2.83107]
[1721256878774,0.01122203,3396.9,3396.8,2.83107]
[1721256879376,0.61022042,3397.2,3396.8,2.83107]
[1721256879576,0.61022042,3397.2,3396.9,0.577518]
[1721256880119,3.55383042,3397.2,3396.9,0.577518]
[1721256880287,0.61022042,3397.1,3396.8,2.63107]
[1721256880977,3.55408042,3396.9,3396.8,2.3737]
[1721256881197,2.944,3396.8,3396.3,2.3737]
[1721256881511,3.55417605,3396.8,3396.3,2.3737]
[1721256881984,2.94413,3396.6,3396.3,2.3737]
[1721256891788,2.94421,3396.5,3396.3,2.3737]
[1721256893150,2.94439,3396.3,3395.9,2.4114]
[1721256893289,2.94439,3396.3,3396.0,0.790627]
[1721256893942,0.02220616,3396.2,3396.0,0.790627]
[1721256894114,2.94439,3396.3,3396.0,0.790627]
[1721256894432,0.02394436,3396.1,3396.0,0.790627]
[1721256894599,2.94439,3396.3,3396.0,1.852627]
[1721256894798,2.94439,3396.3,3395.9,2.4114]
[1721256894799,0.02394436,3396.1,3395.9,2.4114]
[1721256895043,3.55451605,3396.4,3396.0,1.062]
[1721256895343,3.55451605,3396.4,3396.2,1.062]
[1721256895939,0.61017605,3396.3,3396.2,1.062]
[1721256896139,3.55451605,3396.4,3396.2,1.062]
[1721256896338,0.61017605,3396.4,3396.3,2.3091]
[1721256896501,0.91531481,3396.5,3396.3,2.3091]
[1721256897438,0.61183868,3396.4,3396.3,5.25348]
[1721256897744,0.61183868,3396.5,3396.3,6.31548]
[1721256898042,0.61183868,3396.5,3396.4,0.666282]
[1721256898513,0.61183868,3396.5,3396.4,2.975382]
[1721256899104,0.91531481,3396.6,3396.4,2.975382]
[1721256899414,0.91531481,3396.6,3396.5,1.062]
[1721256899615,1.22041975,3396.7,3396.5,1.062]
[1721256899854,1.43784527,3396.7,3396.6,1.062]
[1721256900002,2.60936336,3396.7,3396.6,1.062]
[1721256900399,0.91876517,3396.7,3396.6,1.062]
[1721256900605,1.22041975,3396.8,3396.6,1.062]
[1721256900900,0.91877332,3396.7,3396.6,1.7801762]
[1721256902531,0.2216903,3396.7,3396.6,1.7801762]
[1721256902931,0.91899408,3396.7,3396.6,1.7801762]
[1721256903534,0.221685,3396.7,3396.6,1.7801762]
[1721256904454,0.221685,3396.7,3396.6,7.1243962]
[1721256904455,0.61274467,3396.7,3396.6,7.1243962]
[1721256908951,0.91884948,3396.8,3396.7,2.94403]
[1721256909135,0.91884948,3396.8,3396.7,3.99087262]
[1721256911326,0.91884948,3396.8,3396.7,6.93490262]
[1721256911327,0.61326269,3396.8,3396.7,6.93490262]
[1721256911527,0.61326269,3397.0,3396.8,5.39904]
[1721256911749,0.91884948,3397.1,3396.9,4.75657826]
[1721256911963,0.91884948,3397.1,3397.0,2.94377]
[1721256913125,0.91884948,3397.2,3397.0,2.94377]
[1721256913438,0.91884948,3397.2,3397.1,1.062]
[1721256914543,0.22165825,3397.2,3397.1,1.062]
[1721256914857,0.91963701,3397.2,3397.1,1.062]
[1721256916388,0.91963701,3397.3,3397.1,1.062]
[1721256920362,0.61347371,3397.2,3397.1,1.062]
[1721256920860,0.91963701,3397.2,3397.0,1.062]
[1721256921059,0.92012452,3397.1,3397.0,1.062]
[1721256921461,0.92012452,3397.2,3397.0,1.062]
[1721256924493,0.613376,3397.1,3397.0,1.062]
[1721256930963,0.613376,3397.1,3397.0,1.062]
[1721256933300,0.613376,3397.2,3397.0,1.062]
[1721256933505,0.613376,3397.2,3397.1,1.062]
[1721256933661,0.92012452,3397.3,3397.1,1.062]
[1721256933862,0.61333514,3397.2,3397.1,1.062]
[1721256934606,0.92012452,3397.3,3397.1,1.062]
[1721256934771,0.61330981,3397.2,3397.1,1.062]
[1721256934975,0.61331519,3397.2,3397.1,1.062]
[1721256935199,0.92012452,3397.3,3397.1,1.062]
[1721256938468,0.61316579,3397.2,3397.1,1.728103]
[1721256940005,0.61316579,3397.2,3397.1,4.671783]
[1721256940170,0.61316579,3397.2,3397.1,7.066683]
[1721256941699,0.92012452,3397.3,3397.1,7.066683]
[1721256942210,0.92012452,3397.3,3397.2,3.6902683]
[1721256944981,0.23449201,3397.3,3397.2,3.6902683]
[1721256946769,0.23449201,3397.3,3397.2,0.7466683]
[1721256947500,1.22041975,3397.4,3397.2,0.7466683]
[1721256947803,1.22041975,3397.4,3397.2,2.94358]
[1721256948013,1.22041975,3397.4,3397.1,3.4569]
[1721256948226,0.92132988,3397.2,3397.0,0.6]
[1721256948505,1.22041975,3397.3,3397.0,0.6]
[1721256948506,0.92132988,3397.1,3397.0,0.6]
[1721256949988,0.92132988,3397.1,3397.0,1.600294]
[1721256951014,0.92132988,3397.1,3397.0,3.913794]
[1721256951187,0.92132988,3397.1,3397.0,6.857564]
[1721256953315,0.92132988,3397.1,3397.0,2.9135]
[1721256954244,0.92132988,3397.1,3397.0,0.6]
[1721256955608,0.23473735,3397.1,3397.0,0.6]
[1721256956149,1.4551571,3397.2,3397.0,0.6]
[1721256956349,2.6285501,3397.1,3397.0,0.6]
[1721256956839,5.88822233,3397.1,3397.0,0.6]